[Event "*** Titled Tuesday Blitz"]
[Site "Chess.com"]
[Date "2021.03.16"]
[Round "6"]
[White "Agibileg"]
[Black "Trickov"]
[Result "0-1"]
[WhiteElo "2512"]
[BlackElo "2405"]
[TimeControl "180+1"]
[EndTime "11:07:34 PDT"]
[Termination "Trickov won by resignation"]

1. d4 {[%clk 0:03:00.9]} 1... d5 {[%clk 0:02:54.7]} 2. c4 {[%clk 0:03:01.3]}
2... c6 {[%clk 0:02:54.6]} 3. Nc3 {[%clk 0:03:00.7]} 3... Nf6 {[%clk 0:02:54.1]}
4. Nf3 {[%clk 0:03:00.6]} 4... dxc4 {[%clk 0:02:54]} 5. a4 {[%clk 0:02:59.9]}
5... Bf5 {[%clk 0:02:53.5]} 6. Ne5 {[%clk 0:03:00]} 6... Nbd7 {[%clk 0:02:52.8]}
7. Nxc4 {[%clk 0:03:00.4]} 7... Qc7 {[%clk 0:02:51.4]} 8. g3 {[%clk 0:03:00]}
8... e5 {[%clk 0:02:51.4]} 9. dxe5 {[%clk 0:03:00.9]} 9... Nxe5 {[%clk
0:02:51.5]} 10. Bf4 {[%clk 0:03:00.6]} 10... Rd8 {[%clk 0:02:50.9]} 11. Qc1
{[%clk 0:02:39.2]} 11... Bd6 {[%clk 0:02:46.8]} 12. Nxd6+ {[%clk 0:02:34.7]}
12... Qxd6 {[%clk 0:02:46.7]} 13. Qe3 {[%clk 0:02:29.4]} 13... Ng4 {[%clk
0:02:45.3]} 14. Qxa7 {[%clk 0:02:14.1]} 14... Qb4 {[%clk 0:02:42.1]} 15. Bg2
{[%clk 0:02:00.6]} 15... Ng6 {[%clk 0:02:04.4]} 16. Bc1 {[%clk 0:01:46.6]} 16...
O-O {[%clk 0:01:57.5]} 17. f3 {[%clk 0:01:35]} 17... Ra8 {[%clk 0:01:44.8]} 18.
Qg1 {[%clk 0:01:34.3]} 18... N4e5 {[%clk 0:01:39.8]} 19. Qf2 {[%clk 0:01:30.1]}
19... Nc4 {[%clk 0:01:23]} 20. O-O {[%clk 0:01:30]} 20... Nxb2 {[%clk
0:01:19.7]} 21. Na2 {[%clk 0:01:08.6]} 21... Qb3 {[%clk 0:01:12.1]} 22. e4
{[%clk 0:01:08.4]} 22... Nd3 {[%clk 0:01:10.6]} 23. Qe2 {[%clk 0:01:02.8]} 23...
Be6 {[%clk 0:01:06]} 24. Be3 {[%clk 0:00:51.1]} 24... Rxa4 {[%clk 0:00:59.9]}
25. Rfb1 {[%clk 0:00:50.5]} 25... Rxa2 {[%clk 0:00:59.2]} 26. Qxa2 {[%clk
0:00:48.4]} 26... Qxa2 {[%clk 0:00:58.7]} 27. Rxa2 {[%clk 0:00:35.8]} 27... Bxa2
{[%clk 0:00:58.4]} 28. Rxb7 {[%clk 0:00:34.6]} 28... h6 {[%clk 0:00:51.1]} 29.
f4 {[%clk 0:00:34]} 29... c5 {[%clk 0:00:38.9]} 30. e5 {[%clk 0:00:32.8]} 30...
Rd8 {[%clk 0:00:33.5]} 31. Be4 {[%clk 0:00:17.1]} 31... Bd5 {[%clk 0:00:30.8]}
32. Bxd5 {[%clk 0:00:13.7]} 32... Rxd5 {[%clk 0:00:30.9]} 33. Rb8+ {[%clk
0:00:13.2]} 33... Kh7 {[%clk 0:00:30.3]} 34. Rc8 {[%clk 0:00:14.1]} 34... Ne7
{[%clk 0:00:29.3]} 35. Rc7 {[%clk 0:00:13.7]} 35... Nf5 {[%clk 0:00:29.3]} 36.
Bf2 {[%clk 0:00:10.8]} 36... Kg6 {[%clk 0:00:28.7]} 37. Kg2 {[%clk 0:00:09.7]}
37... h5 {[%clk 0:00:28.3]} 38. Bg1 {[%clk 0:00:09.6]} 38... Rd8 {[%clk
0:00:23.7]} 39. h3 {[%clk 0:00:08.9]} 39... Ra8 {[%clk 0:00:22.7]} 40. g4 {[%clk
0:00:08]} 40... Ra2+ {[%clk 0:00:22.7]} 41. Kf3 {[%clk 0:00:07.7]} 41... Ne1+
{[%clk 0:00:19.3]} 42. Ke4 {[%clk 0:00:06.4]} 42... Ng3+ {[%clk 0:00:17.3]} 43.
Kd5 {[%clk 0:00:02.6]} 43... Rd2+ {[%clk 0:00:16.8]} 44. Kc6 {[%clk 0:00:02.6]}
44... Nf3 {[%clk 0:00:15.5]} 45. Be3 {[%clk 0:00:02]} 45... Rd3 {[%clk
0:00:15.1]} 46. f5+ {[%clk 0:00:02.9]} 46... Nxf5 {[%clk 0:00:14.7]} 47. Bf4
{[%clk 0:00:03.8]} 47... N5d4+ {[%clk 0:00:13.4]} 48. Kxc5 {[%clk 0:00:03.6]}
48... hxg4 {[%clk 0:00:13.4]} 49. Kc4 {[%clk 0:00:03.2]} 49... Rd1 {[%clk
0:00:12.6]} 50. Rd7 {[%clk 0:00:02.6]} 50... gxh3 {[%clk 0:00:11.1]} 51. Rd6+
{[%clk 0:00:03]} 51... f6 {[%clk 0:00:10.2]} 52. exf6 {[%clk 0:00:03.1]} 52...
gxf6 {[%clk 0:00:10.3]} 53. Bg3 {[%clk 0:00:03]} 53... Kf5 {[%clk 0:00:10.1]}
54. Rd5+ {[%clk 0:00:02.9]} 54... Ke4 {[%clk 0:00:09.8]} 55. Rh5 {[%clk
0:00:03.5]} 55... Ne5+ {[%clk 0:00:09.6]} 56. Bxe5 {[%clk 0:00:03.3]} 56... fxe5
{[%clk 0:00:09.2]} 57. Rxh3 {[%clk 0:00:04.2]} 57... Nf3 {[%clk 0:00:08.9]} 58.
Kc3 {[%clk 0:00:03.5]} 58... Rc1+ {[%clk 0:00:09]} 59. Kb2 {[%clk 0:00:03.4]}
59... Rc8 {[%clk 0:00:08.3]} 60. Rh6 {[%clk 0:00:02.9]} 60... Ke3 {[%clk
0:00:08.2]} 61. Rg6 {[%clk 0:00:02.7]} 61... e4 {[%clk 0:00:08.3]} 62. Rd6
{[%clk 0:00:03.3]} 62... Ke2 {[%clk 0:00:07.3]} 63. Re6 {[%clk 0:00:03.5]} 63...
e3 {[%clk 0:00:07.3]} 64. Kb3 {[%clk 0:00:03.4]} 64... Nd4+ {[%clk 0:00:07.3]}
65. Kb2 {[%clk 0:00:03.7]} 65... Nxe6 {[%clk 0:00:07.8]} 0-1

[Event "*** Titled Tuesday Blitz"]
[Site "Chess.com"]
[Date "2021.03.16"]
[Round "6"]
[White "zajka-molotok"]
[Black "Tactickl"]
[Result "1-0"]
[WhiteElo "2533"]
[BlackElo "2755"]
[TimeControl "180+1"]
[EndTime "11:07:44 PDT"]
[Termination "zajka-molotok won by checkmate"]

1. b4 {[%clk 0:03:00.9]} 1... e5 {[%clk 0:02:56.2]} 2. Bb2 {[%clk 0:03:00.8]}
2... Bxb4 {[%clk 0:02:56.3]} 3. Bxe5 {[%clk 0:03:00.8]} 3... Nf6 {[%clk
0:02:57]} 4. e3 {[%clk 0:03:01.2]} 4... O-O {[%clk 0:02:55.6]} 5. Nf3 {[%clk
0:03:01.2]} 5... Re8 {[%clk 0:02:53.2]} 6. Be2 {[%clk 0:03:00.8]} 6... b6 {[%clk
0:02:50.8]} 7. O-O {[%clk 0:02:59.5]} 7... Bb7 {[%clk 0:02:51.4]} 8. Bb2 {[%clk
0:02:58.7]} 8... d5 {[%clk 0:02:49.2]} 9. c4 {[%clk 0:02:56]} 9... Nbd7 {[%clk
0:02:47]} 10. d4 {[%clk 0:02:52.9]} 10... Bd6 {[%clk 0:02:46.4]} 11. Nc3 {[%clk
0:02:49]} 11... a6 {[%clk 0:02:45]} 12. Qc2 {[%clk 0:02:37.5]} 12... Qe7 {[%clk
0:02:41.6]} 13. cxd5 {[%clk 0:02:30.5]} 13... Nxd5 {[%clk 0:02:40.5]} 14. Nxd5
{[%clk 0:02:30.5]} 14... Bxd5 {[%clk 0:02:41.4]} 15. h3 {[%clk 0:02:18.3]} 15...
h6 {[%clk 0:02:41.3]} 16. Nd2 {[%clk 0:02:07.2]} 16... Nf6 {[%clk 0:02:24.3]}
17. Bf3 {[%clk 0:02:06.9]} 17... Qe6 {[%clk 0:02:23.3]} 18. Bxd5 {[%clk
0:02:02.4]} 18... Qxd5 {[%clk 0:02:24.2]} 19. Nc4 {[%clk 0:01:51.8]} 19... Ne4
{[%clk 0:02:21.4]} 20. Nxd6 {[%clk 0:01:49.8]} 20... cxd6 {[%clk 0:02:22.3]} 21.
Rfc1 {[%clk 0:01:42.4]} 21... h5 {[%clk 0:02:12.3]} 22. Qc6 {[%clk 0:01:37.4]}
22... Qf5 {[%clk 0:02:10.5]} 23. f3 {[%clk 0:01:33.2]} 23... Ng5 {[%clk
0:02:05.9]} 24. h4 {[%clk 0:01:28.9]} 24... Nh7 {[%clk 0:01:53.8]} 25. Re1
{[%clk 0:01:01.9]} 25... Rac8 {[%clk 0:01:19.4]} 26. Qxd6 {[%clk 0:01:00.3]}
26... Re6 {[%clk 0:01:17.4]} 27. Qf4 {[%clk 0:00:49]} 27... Qb5 {[%clk
0:01:08.1]} 28. Rac1 {[%clk 0:00:41.4]} 28... Rxc1 {[%clk 0:00:48.5]} 29. Bxc1
{[%clk 0:00:42.3]} 29... Qc4 {[%clk 0:00:48.9]} 30. a3 {[%clk 0:00:36.2]} 30...
Nf6 {[%clk 0:00:46.8]} 31. Qg5 {[%clk 0:00:21.5]} 31... Qc3 {[%clk 0:00:32.7]}
32. Qg3 {[%clk 0:00:19.3]} 32... Nd5 {[%clk 0:00:27.5]} 33. Qf2 {[%clk
0:00:18.5]} 33... Qb3 {[%clk 0:00:18]} 34. e4 {[%clk 0:00:16.3]} 34... Nc3
{[%clk 0:00:18.3]} 35. d5 {[%clk 0:00:13.7]} 35... Rg6 {[%clk 0:00:18.5]} 36.
Bg5 {[%clk 0:00:12.5]} 36... f6 {[%clk 0:00:17.2]} 37. Be3 {[%clk 0:00:11.2]}
37... Nd1 {[%clk 0:00:12.3]} 38. Qe2 {[%clk 0:00:08.5]} 38... Nxe3 {[%clk
0:00:09.7]} 39. Qxe3 {[%clk 0:00:09.4]} 39... Qb2 {[%clk 0:00:10]} 40. Re2
{[%clk 0:00:07.7]} 40... Qb1+ {[%clk 0:00:10.4]} 41. Kh2 {[%clk 0:00:07.8]}
41... Qb5 {[%clk 0:00:11.1]} 42. Rd2 {[%clk 0:00:07.2]} 42... Qd7 {[%clk
0:00:07.6]} 43. Qf4 {[%clk 0:00:06.8]} 43... Kh7 {[%clk 0:00:06.9]} 44. d6
{[%clk 0:00:06.8]} 44... b5 {[%clk 0:00:06.6]} 45. Rd5 {[%clk 0:00:06.5]} 45...
Kg8 {[%clk 0:00:04.5]} 46. Qf5 {[%clk 0:00:06.1]} 46... Qd8 {[%clk 0:00:01.6]}
47. Qxg6 {[%clk 0:00:05.7]} 47... b4 {[%clk 0:00:02.5]} 48. Qxh5 {[%clk
0:00:05.2]} 48... bxa3 {[%clk 0:00:03.4]} 49. Qf5 {[%clk 0:00:02.8]} 49... a2
{[%clk 0:00:04.3]} 50. Qe6+ {[%clk 0:00:03]} 50... Kf8 {[%clk 0:00:04.9]} 51.
Ra5 {[%clk 0:00:03.1]} 51... Qxa5 {[%clk 0:00:04.5]} 52. d7 {[%clk 0:00:02.9]}
52... Qd8 {[%clk 0:00:03.3]} 53. Qxa2 {[%clk 0:00:01.7]} 53... Qxd7 {[%clk
0:00:03.5]} 54. Qxa6 {[%clk 0:00:02.3]} 54... Qe7 {[%clk 0:00:04.1]} 55. Qa8+
{[%clk 0:00:02.3]} 55... Kf7 {[%clk 0:00:04.4]} 56. Qd5+ {[%clk 0:00:02.9]}
56... Kg6 {[%clk 0:00:04.4]} 57. Qf5+ {[%clk 0:00:03.4]} 57... Kh6 {[%clk
0:00:04.8]} 58. Qf4+ {[%clk 0:00:03.7]} 58... g5 {[%clk 0:00:05.3]} 59. hxg5+
{[%clk 0:00:03.1]} 59... fxg5 {[%clk 0:00:06.2]} 60. Qf5 {[%clk 0:00:03.8]}
60... Qd6+ {[%clk 0:00:05.4]} 61. e5 {[%clk 0:00:04.2]} 61... Qd2 {[%clk
0:00:06.2]} 62. e6 {[%clk 0:00:04.2]} 62... Qd6+ {[%clk 0:00:05.5]} 63. Kh3
{[%clk 0:00:04.6]} 63... Qd1 {[%clk 0:00:04.5]} 64. Qf6+ {[%clk 0:00:04.7]}
64... Kh7 {[%clk 0:00:05.1]} 65. Qf7+ {[%clk 0:00:04.8]} 65... Kh6 {[%clk
0:00:05.1]} 66. Qf6+ {[%clk 0:00:05.1]} 66... Kh7 {[%clk 0:00:05.6]} 67. Qxg5
{[%clk 0:00:05.1]} 67... Qh1+ {[%clk 0:00:04.7]} 68. Kg4 {[%clk 0:00:05.3]}
68... Qb1 {[%clk 0:00:05]} 69. Qf5+ {[%clk 0:00:05.6]} 69... Kh6 {[%clk
0:00:04.7]} 70. Qxb1 {[%clk 0:00:05.2]} 70... Kg7 {[%clk 0:00:05.6]} 71. Qf5
{[%clk 0:00:05.5]} 71... Kh6 {[%clk 0:00:05.8]} 72. e7 {[%clk 0:00:05.4]} 72...
Kg7 {[%clk 0:00:06.7]} 73. e8=Q {[%clk 0:00:05.5]} 73... Kh6 {[%clk 0:00:07.6]}
74. Qeg6# {[%clk 0:00:05.7]} 1-0

[Event "*** Titled Tuesday Blitz"]
[Site "Chess.com"]
[Date "2021.03.16"]
[Round "6"]
[White "Jospem"]
[Black "Paladin61"]
[Result "1-0"]
[WhiteElo "2940"]
[BlackElo "2787"]
[TimeControl "180+1"]
[EndTime "11:07:54 PDT"]
[Termination "Jospem won by checkmate"]

1. e4 {[%clk 0:03:00.9]} 1... c5 {[%clk 0:03:00]} 2. Nf3 {[%clk 0:03:01.4]} 2...
d6 {[%clk 0:03:00.3]} 3. c3 {[%clk 0:03:01.7]} 3... Nf6 {[%clk 0:03:00.2]} 4. h3
{[%clk 0:03:02.4]} 4... Nc6 {[%clk 0:02:58]} 5. Bd3 {[%clk 0:03:02.9]} 5... d5
{[%clk 0:02:58.2]} 6. e5 {[%clk 0:03:02.9]} 6... Nd7 {[%clk 0:02:58.7]} 7. Bb5
{[%clk 0:03:02.7]} 7... Qb6 {[%clk 0:02:58.8]} 8. Bxc6 {[%clk 0:03:03.1]} 8...
Qxc6 {[%clk 0:02:58.4]} 9. O-O {[%clk 0:03:03.7]} 9... e6 {[%clk 0:02:55.4]} 10.
d4 {[%clk 0:03:03.8]} 10... b6 {[%clk 0:02:49.7]} 11. Re1 {[%clk 0:03:00.7]}
11... h6 {[%clk 0:02:47.9]} 12. Nbd2 {[%clk 0:02:59.3]} 12... Ba6 {[%clk
0:02:45.2]} 13. Nf1 {[%clk 0:02:59.4]} 13... Be7 {[%clk 0:02:36.4]} 14. Ng3
{[%clk 0:02:55.2]} 14... O-O-O {[%clk 0:02:31.5]} 15. Bd2 {[%clk 0:02:45]} 15...
Kb8 {[%clk 0:02:25.5]} 16. b4 {[%clk 0:02:38]} 16... cxb4 {[%clk 0:02:21.6]} 17.
cxb4 {[%clk 0:02:38.9]} 17... Rc8 {[%clk 0:02:21.6]} 18. a4 {[%clk 0:02:39]}
18... Bd3 {[%clk 0:02:03.4]} 19. Qb3 {[%clk 0:02:11.8]} 19... Bc2 {[%clk
0:01:48.9]} 20. Qa3 {[%clk 0:02:05]} 20... Bh7 {[%clk 0:01:31.3]} 21. b5 {[%clk
0:01:52.6]} 21... Bxa3 {[%clk 0:00:44.7]} 22. bxc6 {[%clk 0:01:52.2]} 22... Be7
{[%clk 0:00:42.2]} 23. cxd7 {[%clk 0:01:52]} 23... Rc7 {[%clk 0:00:42.6]} 24.
Nf1 {[%clk 0:01:39.1]} 24... Rxd7 {[%clk 0:00:41.5]} 25. Ne3 {[%clk 0:01:39.5]}
25... Rc8 {[%clk 0:00:41.1]} 26. Rec1 {[%clk 0:01:40]} 26... Rdc7 {[%clk
0:00:37]} 27. Rxc7 {[%clk 0:01:39.8]} 27... Rxc7 {[%clk 0:00:37.9]} 28. Ne1
{[%clk 0:01:33.6]} 28... Kb7 {[%clk 0:00:34.9]} 29. Kf1 {[%clk 0:01:33.8]} 29...
a5 {[%clk 0:00:25.2]} 30. Ke2 {[%clk 0:01:33.3]} 30... Ka6 {[%clk 0:00:25.5]}
31. Nd3 {[%clk 0:01:32.5]} 31... Rc6 {[%clk 0:00:25.7]} 32. Ra2 {[%clk 0:01:23]}
32... Be4 {[%clk 0:00:22.2]} 33. f3 {[%clk 0:01:22.8]} 33... Bh7 {[%clk
0:00:22.4]} 34. g4 {[%clk 0:01:23.5]} 34... Rc7 {[%clk 0:00:21.3]} 35. Rb2
{[%clk 0:01:23]} 35... Rc6 {[%clk 0:00:21]} 36. f4 {[%clk 0:01:23.3]} 36... Be4
{[%clk 0:00:20.6]} 37. Nf2 {[%clk 0:01:23.9]} 37... Bh7 {[%clk 0:00:19.6]} 38.
f5 {[%clk 0:01:24.3]} 38... Bg5 {[%clk 0:00:19.9]} 39. Nfd1 {[%clk 0:01:24.4]}
39... Rc7 {[%clk 0:00:17.8]} 40. Kf3 {[%clk 0:01:16.8]} 40... Rc6 {[%clk
0:00:17.7]} 41. Kg3 {[%clk 0:01:17.4]} 41... Be7 {[%clk 0:00:16.2]} 42. h4
{[%clk 0:01:16.8]} 42... Ba3 {[%clk 0:00:16.1]} 43. Rb3 {[%clk 0:01:15.1]} 43...
Bf8 {[%clk 0:00:14.7]} 44. h5 {[%clk 0:01:14.3]} 44... Rc7 {[%clk 0:00:14]} 45.
Rc3 {[%clk 0:01:08.5]} 45... Rxc3 {[%clk 0:00:09.8]} 46. Nxc3 {[%clk 0:01:09.4]}
46... Bb4 {[%clk 0:00:10.1]} 47. Kf4 {[%clk 0:01:10]} 47... Bxc3 {[%clk
0:00:05.9]} 48. Bxc3 {[%clk 0:01:10.9]} 48... b5 {[%clk 0:00:06.4]} 49. axb5+
{[%clk 0:01:08.7]} 49... Kxb5 {[%clk 0:00:07.3]} 50. f6 {[%clk 0:01:07.5]} 50...
g5+ {[%clk 0:00:04.7]} 51. hxg6 {[%clk 0:01:07.2]} 51... Bxg6 {[%clk 0:00:05]}
52. Bb2 {[%clk 0:00:29.4]} 52... Kb4 {[%clk 0:00:05.1]} 53. Nf5 {[%clk
0:00:29.5]} 53... a4 {[%clk 0:00:04.4]} 54. Nxh6 {[%clk 0:00:25.4]} 54... Kb3
{[%clk 0:00:03.9]} 55. Bc1 {[%clk 0:00:25.9]} 55... a3 {[%clk 0:00:03.3]} 56.
Bxa3 {[%clk 0:00:25.7]} 56... Kxa3 {[%clk 0:00:03.7]} 57. Nxf7 {[%clk 0:00:20]}
57... Bxf7 {[%clk 0:00:03.9]} 58. Kg5 {[%clk 0:00:20.9]} 58... Kb4 {[%clk
0:00:04.3]} 59. Kh6 {[%clk 0:00:21.4]} 59... Kc4 {[%clk 0:00:04.2]} 60. g5
{[%clk 0:00:19.4]} 60... Kxd4 {[%clk 0:00:04.1]} 61. g6 {[%clk 0:00:19.9]} 61...
Bxg6 {[%clk 0:00:04.4]} 62. Kxg6 {[%clk 0:00:20.8]} 62... Kxe5 {[%clk
0:00:04.8]} 63. f7 {[%clk 0:00:21.7]} 63... d4 {[%clk 0:00:05]} 64. f8=Q {[%clk
0:00:22.6]} 64... Ke4 {[%clk 0:00:05.1]} 65. Kg5 {[%clk 0:00:22]} 65... e5
{[%clk 0:00:05]} 66. Qf5+ {[%clk 0:00:20.6]} 66... Ke3 {[%clk 0:00:05.2]} 67.
Qxe5+ {[%clk 0:00:20.9]} 67... Kd3 {[%clk 0:00:05.6]} 68. Kf4 {[%clk 0:00:21.3]}
68... Kc4 {[%clk 0:00:05.5]} 69. Kf3 {[%clk 0:00:21.2]} 69... d3 {[%clk
0:00:05.6]} 70. Ke3 {[%clk 0:00:21.6]} 70... d2 {[%clk 0:00:05.9]} 71. Qd4+
{[%clk 0:00:21.7]} 71... Kb3 {[%clk 0:00:06.1]} 72. Qxd2 {[%clk 0:00:21.9]}
72... Ka3 {[%clk 0:00:06]} 73. Qc2 {[%clk 0:00:20.1]} 73... Kb4 {[%clk
0:00:06.1]} 74. Kd4 {[%clk 0:00:20.5]} 74... Ka3 {[%clk 0:00:06]} 75. Qb1 {[%clk
0:00:20.8]} 75... Ka4 {[%clk 0:00:05.7]} 76. Kc4 {[%clk 0:00:20.8]} 76... Ka3
{[%clk 0:00:06.1]} 77. Qb3# {[%clk 0:00:21]} 1-0

[Event "*** Titled Tuesday Blitz"]
[Site "Chess.com"]
[Date "2021.03.16"]
[Round "6"]
[White "Konavets"]
[Black "RobertoJBM"]
[Result "1/2-1/2"]
[WhiteElo "2938"]
[BlackElo "2770"]
[TimeControl "180+1"]
[EndTime "11:08:14 PDT"]
[Termination "Game drawn - insufficient material"]

1. d4 {[%clk 0:03:00.9]} 1... d5 {[%clk 0:03:00.1]} 2. c4 {[%clk 0:02:59.4]}
2... c6 {[%clk 0:03:00.5]} 3. Nf3 {[%clk 0:02:59.4]} 3... Nf6 {[%clk 0:03:00.4]}
4. e3 {[%clk 0:02:59.8]} 4... Bf5 {[%clk 0:02:58.8]} 5. Nc3 {[%clk 0:02:58.4]}
5... e6 {[%clk 0:02:59]} 6. Nh4 {[%clk 0:02:57.8]} 6... Be4 {[%clk 0:02:59.1]}
7. f3 {[%clk 0:02:57.9]} 7... Bg6 {[%clk 0:02:58.7]} 8. Qb3 {[%clk 0:02:58.6]}
8... Qb6 {[%clk 0:02:57.4]} 9. Bd2 {[%clk 0:02:57.6]} 9... Nbd7 {[%clk
0:02:57.2]} 10. g3 {[%clk 0:02:57.3]} 10... Be7 {[%clk 0:02:55.9]} 11. Be2
{[%clk 0:02:57.5]} 11... O-O {[%clk 0:02:49.1]} 12. O-O {[%clk 0:02:56.4]} 12...
Rfe8 {[%clk 0:02:46.9]} 13. Nxg6 {[%clk 0:02:56.3]} 13... hxg6 {[%clk 0:02:47]}
14. Rac1 {[%clk 0:02:55.4]} 14... Rad8 {[%clk 0:02:44.2]} 15. f4 {[%clk
0:02:55.7]} 15... Qxb3 {[%clk 0:02:41.9]} 16. axb3 {[%clk 0:02:55.2]} 16... Ne4
{[%clk 0:02:37.3]} 17. Nxe4 {[%clk 0:02:54.4]} 17... dxe4 {[%clk 0:02:38.2]} 18.
Ba5 {[%clk 0:02:45.7]} 18... Rc8 {[%clk 0:02:37]} 19. Rfd1 {[%clk 0:02:45.6]}
19... f5 {[%clk 0:02:34.8]} 20. Ra1 {[%clk 0:02:37.7]} 20... a6 {[%clk
0:02:31.4]} 21. Bc3 {[%clk 0:02:32]} 21... Kf7 {[%clk 0:02:28.9]} 22. d5 {[%clk
0:02:27.4]} 22... exd5 {[%clk 0:02:24.1]} 23. cxd5 {[%clk 0:02:28.3]} 23... c5
{[%clk 0:02:20.8]} 24. d6 {[%clk 0:02:24.7]} 24... Bf6 {[%clk 0:02:21.1]} 25.
Bc4+ {[%clk 0:02:20]} 25... Kf8 {[%clk 0:02:21.3]} 26. Bd5 {[%clk 0:02:20.6]}
26... Bxc3 {[%clk 0:02:15.9]} 27. bxc3 {[%clk 0:02:21.5]} 27... Rb8 {[%clk
0:02:14.4]} 28. Ra5 {[%clk 0:02:07.2]} 28... Red8 {[%clk 0:02:14.3]} 29. Be6
{[%clk 0:02:03.4]} 29... Rbc8 {[%clk 0:02:10.5]} 30. Rd5 {[%clk 0:02:02.3]}
30... Rc6 {[%clk 0:02:10.1]} 31. g4 {[%clk 0:01:39.7]} 31... fxg4 {[%clk
0:02:08.8]} 32. Kf2 {[%clk 0:01:02.3]} 32... Nf6 {[%clk 0:02:04.3]} 33. Rdxc5
{[%clk 0:00:52.8]} 33... Rcxd6 {[%clk 0:02:04.6]} 34. Rc8 {[%clk 0:00:53]} 34...
Ke7 {[%clk 0:01:57.9]} 35. Rxd8 {[%clk 0:00:52]} 35... Kxd8 {[%clk 0:01:53.3]}
36. Bf7 {[%clk 0:00:49.9]} 36... Rd2+ {[%clk 0:01:50.5]} 37. Ke1 {[%clk
0:00:44]} 37... Rxh2 {[%clk 0:01:49.7]} 38. Bxg6 {[%clk 0:00:44.4]} 38... g3
{[%clk 0:01:49.1]} 39. Rg5 {[%clk 0:00:43.8]} 39... Rb2 {[%clk 0:01:26]} 40. Bf7
{[%clk 0:00:31.7]} 40... Ke7 {[%clk 0:01:24]} 41. Bc4 {[%clk 0:00:23.7]} 41...
g2 {[%clk 0:01:20.9]} 42. Rxg7+ {[%clk 0:00:22.5]} 42... Kd6 {[%clk 0:01:19.1]}
43. Rg6 {[%clk 0:00:20.9]} 43... Ke7 {[%clk 0:01:19.2]} 44. b4 {[%clk
0:00:19.5]} 44... b5 {[%clk 0:01:13.5]} 45. Be2 {[%clk 0:00:19.5]} 45... Nd5
{[%clk 0:01:11.8]} 46. Rxg2 {[%clk 0:00:16.3]} 46... Nxe3 {[%clk 0:01:09.4]} 47.
Rg6 {[%clk 0:00:11.1]} 47... Nd5 {[%clk 0:01:07.7]} 48. Rxa6 {[%clk 0:00:11.1]}
48... Nxc3 {[%clk 0:01:06.1]} 49. Bg4 {[%clk 0:00:10.9]} 49... e3 {[%clk
0:01:05.6]} 50. Re6+ {[%clk 0:00:10.7]} 50... Kf7 {[%clk 0:01:05.2]} 51. Rxe3
{[%clk 0:00:11.6]} 51... Na4 {[%clk 0:00:54]} 52. Re4 {[%clk 0:00:08.4]} 52...
Nc3 {[%clk 0:00:53.7]} 53. Rd4 {[%clk 0:00:08.7]} 53... Na2 {[%clk 0:00:50.6]}
54. Rd7+ {[%clk 0:00:08.7]} 54... Kf6 {[%clk 0:00:49.8]} 55. Rd6+ {[%clk
0:00:09]} 55... Ke7 {[%clk 0:00:49.8]} 56. Re6+ {[%clk 0:00:09.2]} 56... Kf7
{[%clk 0:00:49.6]} 57. f5 {[%clk 0:00:09.8]} 57... Rh2 {[%clk 0:00:46.3]} 58.
Re4 {[%clk 0:00:07.7]} 58... Kf6 {[%clk 0:00:45.9]} 59. Rd4 {[%clk 0:00:05.5]}
59... Ke5 {[%clk 0:00:44.9]} 60. Rd8 {[%clk 0:00:02.8]} 60... Nxb4 {[%clk
0:00:44.8]} 61. Re8+ {[%clk 0:00:03.3]} 61... Kf6 {[%clk 0:00:45.2]} 62. Re6+
{[%clk 0:00:03.4]} 62... Kg5 {[%clk 0:00:45.7]} 63. Rg6+ {[%clk 0:00:02.7]}
63... Kf4 {[%clk 0:00:46]} 64. f6 {[%clk 0:00:03.2]} 64... Nd3+ {[%clk
0:00:45.5]} 65. Kf1 {[%clk 0:00:03.6]} 65... Ne5 {[%clk 0:00:44]} 66. Rg7 {[%clk
0:00:02.8]} 66... Nxg4 {[%clk 0:00:30.1]} 67. f7 {[%clk 0:00:02.9]} 67... Rf2+
{[%clk 0:00:30.2]} 68. Kg1 {[%clk 0:00:02.7]} 68... Ke5 {[%clk 0:00:30.9]} 69.
Rg5+ {[%clk 0:00:02.4]} 69... Ke6 {[%clk 0:00:28.9]} 70. Rxg4 {[%clk 0:00:02.4]}
70... Rxf7 {[%clk 0:00:29]} 71. Rg5 {[%clk 0:00:02.3]} 71... Rb7 {[%clk
0:00:26.2]} 72. Kf2 {[%clk 0:00:02.2]} 72... b4 {[%clk 0:00:26.5]} 73. Ke3
{[%clk 0:00:02.7]} 73... b3 {[%clk 0:00:26.8]} 74. Rg1 {[%clk 0:00:03.3]} 74...
Kd5 {[%clk 0:00:27]} 75. Kd3 {[%clk 0:00:03.4]} 75... Rc7 {[%clk 0:00:27]} 76.
Rb1 {[%clk 0:00:03.2]} 76... Rh7 {[%clk 0:00:24.8]} 77. Rxb3 {[%clk 0:00:02.6]}
77... Rh3+ {[%clk 0:00:24.3]} 78. Kc2 {[%clk 0:00:03.5]} 78... Rh2+ {[%clk
0:00:24.2]} 79. Kc3 {[%clk 0:00:03.7]} 79... Kc5 {[%clk 0:00:25.1]} 80. Rb2
{[%clk 0:00:03.6]} 80... Rh3+ {[%clk 0:00:25.3]} 81. Kc2 {[%clk 0:00:04.5]}
81... Kc4 {[%clk 0:00:26.1]} 82. Kb1 {[%clk 0:00:05.4]} 82... Kc3 {[%clk
0:00:24.1]} 83. Ka2 {[%clk 0:00:06.3]} 83... Kc4 {[%clk 0:00:22.8]} 84. Rc2+
{[%clk 0:00:06.7]} 84... Kb4 {[%clk 0:00:22]} 85. Rb2+ {[%clk 0:00:07.6]} 85...
Kc4 {[%clk 0:00:22.3]} 86. Rc2+ {[%clk 0:00:08]} 86... Rc3 {[%clk 0:00:22.8]}
87. Rb2 {[%clk 0:00:08.9]} 87... Rd3 {[%clk 0:00:22.4]} 88. Rc2+ {[%clk
0:00:09.3]} 88... Kb4 {[%clk 0:00:22.7]} 89. Rb2+ {[%clk 0:00:10.2]} 89... Ka4
{[%clk 0:00:22.5]} 90. Rc2 {[%clk 0:00:10.6]} 90... Kb5 {[%clk 0:00:21.7]} 91.
Kb2 {[%clk 0:00:10.7]} 91... Kb4 {[%clk 0:00:21.5]} 92. Kc1 {[%clk 0:00:11.2]}
92... Rc3 {[%clk 0:00:21.3]} 93. Rxc3 {[%clk 0:00:11.7]} 93... Kxc3 {[%clk
0:00:22.2]} 1/2-1/2